bitfinex/quotes_ETHUSD_20241120
["timestamp","ask_amount","ask_price","bid_price","bid_amount"]
[1732116113072,3.0,3094.7,3094.6,0.7951]
[1732116113241,3.0,3094.8,3094.6,0.7951]
[1732116113984,3.23181,3094.3,3092.9,0.81581813]
[1732116114279,3.23181,3094.3,3092.8,0.01]
[1732116114280,3.0,3094.4,3093.1,0.7835]
[1732116114443,0.946241,3094.7,3093.2,0.7835]
[1732116114631,3.0,3094.3,3093.2,0.7835]
[1732116114966,3.0,3094.5,3093.3,0.7835]
[1732116115170,3.0,3094.3,3093.3,0.7835]
[1732116115673,3.0,3094.5,3093.3,0.7835]
[1732116116004,3.0,3094.2,3093.3,0.7835]
[1732116116128,6.62906,3095.0,3093.3,0.7835]
[1732116116129,3.23238,3093.7,3093.3,0.7835]
[1732116116335,3.23248,3093.6,3093.3,0.7835]
[1732116116743,6.23268,3093.4,3093.3,0.7835]
[1732116117332,3.0,3093.4,3093.3,0.7835]
[1732116117453,3.0,3093.5,3093.3,0.7835]
[1732116117980,6.23268,3093.4,3093.3,0.7835]
[1732116118180,3.2331,3093.0,3092.9,0.7951]
[1732116118366,6.2331,3093.0,3092.9,0.7951]
[1732116118879,3.23263,3093.5,3091.4,0.04233631]
[1732116118880,6.2333,3092.9,3091.4,0.04233631]
[1732116119203,6.2333,3092.9,3091.6,0.48702432]
[1732116119491,0.323248,3093.6,3091.6,0.48702432]
[1732116119492,3.23285,3093.3,3091.9,0.7951]
[1732116119642,3.0,3093.5,3092.1,0.7951]
[1732116119842,3.0,3093.5,3092.4,0.7951]
[1732116120037,0.8054,3094.4,3092.5,0.48702432]
[1732116120038,3.0,3093.7,3092.5,0.48702432]
[1732116120270,0.8054,3094.4,3092.5,0.48702432]
[1732116120271,0.7522,3094.9,3092.8,0.7951]
[1732116120475,3.24093,3095.1,3092.8,0.7951]
[1732116120476,3.23136,3094.7,3093.1,0.55]
[1732116120706,3.23105,3095.0,3093.3,0.7951]
[1732116121003,6.46244,3094.8,3093.3,0.7951]
[1732116121143,3.23164,3094.4,3093.3,0.7951]
[1732116121345,0.93100863,3095.2,3093.3,0.7951]
[1732116121544,3.23101,3095.0,3093.3,0.7951]
[1732116121789,3.23226,3093.9,3093.3,0.7951]
[1732116121946,3.23244,3093.7,3093.3,0.7951]
[1732116122141,3.23244,3093.7,3092.2,0.48702432]
[1732116122142,3.23206,3094.0,3093.0,0.7951]
[1732116122337,0.01,3094.2,3093.0,0.7951]
[1732116122338,3.23273,3093.4,3093.0,0.7951]
[1732116122541,3.0,3093.3,3093.0,0.7951]
[1732116122764,3.0,3093.1,3093.0,0.7951]
[1732116122983,3.23274,3093.4,3093.0,0.7951]
[1732116122984,3.0,3093.3,3093.0,0.7951]
[1732116123154,3.0,3093.4,3093.0,0.7951]
[1732116123357,3.2328,3093.3,3093.0,0.7951]
[1732116123573,6.23293,3093.2,3093.0,0.7951]
[1732116123757,3.23343,3092.7,3091.6,0.7951]
[1732116123987,3.0,3092.6,3091.6,0.7951]
[1732116124172,3.0,3092.4,3091.6,0.7951]
[1732116124485,3.0,3092.2,3091.6,0.7951]
[1732116124692,3.23413,3092.1,3091.6,0.7951]
[1732116124906,3.0,3092.2,3091.6,0.7951]
[1732116125098,3.23417,3092.0,3091.6,0.7951]
[1732116125256,3.23446,3091.7,3091.6,0.7951]
[1732116125454,3.0,3091.6,3091.2,0.7951]
[1732116125693,6.23461,3091.6,3091.2,0.7951]
[1732116125900,3.0,3091.4,3091.2,0.7951]
[1732116126456,3.0,3091.6,3091.2,0.7951]
[1732116126900,0.323417,3092.0,3091.2,0.7951]
[1732116127060,3.0,3091.8,3091.2,0.7951]
[1732116127397,6.23413,3092.1,3091.2,0.7951]
[1732116127600,3.0,3092.1,3091.2,0.7951]
[1732116128272,3.0,3092.3,3091.2,0.7951]
[1732116128470,3.2338,3092.4,3091.2,0.7951]
[1732116128695,3.0,3092.3,3091.2,0.7951]
[1732116128877,0.15134389,3092.7,3091.2,0.7951]
[1732116129055,3.23348,3092.7,3091.2,0.7951]
[1732116129408,3.23314,3093.0,3091.4,0.55]
[1732116129611,3.23332,3092.8,3091.5,0.7951]
[1732116129756,3.233,3093.1,3091.5,1.28212432]
[1732116130095,3.23307,3093.1,3091.7,0.7822]
[1732116130303,0.3233,3093.0,3091.7,0.7822]
[1732116130607,3.0,3092.6,3091.7,0.7822]
[1732116130774,4.15678425,3093.6,3091.7,0.7822]
[1732116130775,3.23396,3092.2,3091.7,0.7822]
[1732116131110,3.0,3092.5,3091.7,0.7822]
[1732116131301,3.0,3092.6,3091.7,0.7822]
[1732116131502,0.7802,3093.2,3091.7,0.7822]
[1732116131503,3.55,3093.0,3091.7,0.7822]
[1732116131679,3.0,3092.0,3091.7,0.7822]
[1732116131883,3.23392,3092.3,3091.7,0.7822]
[1732116132190,3.0,3092.2,3091.7,0.7822]
[1732116132397,6.23436,3091.8,3091.7,0.7822]
[1732116132601,6.23436,3091.8,3091.2,0.7951]
[1732116132602,3.0,3091.7,3091.2,0.7951]
[1732116132777,6.23467,3091.5,3091.2,0.7951]
[1732116133131,3.23497,3091.3,3090.5,0.7951]
[1732116133270,3.0,3091.2,3090.5,0.7951]
[1732116134088,3.0,3091.4,3090.5,0.7951]
[1732116134287,3.0,3091.7,3090.5,0.7951]
[1732116134491,3.0,3091.2,3090.5,0.7951]
[1732116134696,0.623436,3091.6,3090.5,0.7951]
[1732116134697,3.0,3091.6,3090.5,0.7951]
[1732116135225,0.92542016,3092.0,3090.5,0.7951]
[1732116135226,3.0,3092.0,3090.5,0.48702432]
[1732116135375,0.7589,3092.4,3090.7,0.7951]
[1732116135376,3.0,3091.9,3090.7,0.7951]
[1732116135687,5.11934724,3093.2,3090.9,0.7951]
[1732116135688,3.23352,3092.6,3090.9,0.7951]
[1732116135886,0.7589,3092.8,3091.1,0.7951]
[1732116136086,3.23345,3092.7,3091.1,0.7951]
[1732116136298,3.23373,3092.4,3091.1,0.7951]
[1732116136503,0.7589,3092.8,3091.1,0.7951]
[1732116136869,3.23392,3092.3,3091.1,0.7951]
[1732116137076,3.0,3092.5,3091.1,0.7951]
[1732116137314,3.623358,3092.5,3091.1,0.7951]
[1732116137615,3.0,3092.7,3091.2,0.7951]
[1732116137910,3.91056183,3092.8,3091.2,0.7951]
[1732116138113,0.41439618,3092.7,3091.2,0.7951]
[1732116138417,0.91056183,3092.8,3091.2,0.7951]
[1732116138418,0.15166183,3092.8,3091.2,0.7951]
[1732116138641,0.15166183,3092.8,3091.2,1.28212432]
[1732116138925,3.23307,3093.1,3091.4,0.7951]
[1732116138926,3.233,3093.1,3091.4,0.7951]
[1732116139077,3.2334,3092.8,3091.4,0.7951]
[1732116139277,3.634147,3093.0,3091.4,0.7951]
[1732116139571,4.15913332,3093.2,3091.4,0.7951]
[1732116140116,3.0,3092.7,3091.4,0.7951]
[1732116140471,6.23347,3092.7,3091.4,0.7951]
[1732116140678,3.0,3092.7,3091.4,0.7951]
[1732116140981,0.623339,3092.6,3091.4,0.7951]
[1732116141375,3.23426,3091.9,3091.4,0.7951]
[1732116141692,3.0,3092.3,3091.4,0.7951]
[1732116141693,3.0,3091.6,3091.4,0.7951]
[1732116141915,3.0,3092.0,3091.4,0.7951]
[1732116142226,3.15266415,3092.3,3091.4,0.7951]
[1732116142427,3.0,3092.2,3091.4,0.7951]
[1732116142779,3.0,3092.0,3091.4,0.7951]
[1732116142980,0.623411,3091.9,3091.4,0.7951]
[1732116143180,3.23388,3092.3,3091.4,0.7951]
[1732116143423,6.23417,3092.0,3091.4,0.7951]
[1732116143777,3.0,3091.8,3091.4,0.7951]
[1732116144227,3.0,3092.2,3091.4,0.7951]
[1732116144536,3.0,3092.3,3091.4,0.7951]
[1732116144837,3.976028,3092.5,3091.4,0.7951]
[1732116144838,0.3,3092.2,3091.4,0.7951]
[1732116144988,3.0,3092.4,3091.4,0.7951]
[1732116145192,0.14971109,3092.5,3091.4,0.7951]
[1732116145389,3.23321,3092.9,3091.4,0.7951]
[1732116145584,3.23343,3092.7,3091.4,0.7951]
[1732116145785,0.01,3093.5,3091.4,0.7951]
[1732116145786,3.23306,3093.1,3091.4,0.7951]
[1732116146085,3.23292,3093.2,3091.5,0.7951]
[1732116146320,0.323292,3093.1,3091.5,0.7951]
[1732116146524,0.323292,3093.1,3091.6,0.7951]
[1732116146737,0.14642992,3093.5,3091.8,0.7742]
[1732116147289,0.14642992,3093.5,3092.1,1.3242]
[1732116147502,0.14642992,3093.5,3092.2,0.80653688]
[1732116147864,3.23174,3094.3,3092.4,0.7742]
[1732116148020,0.323181,3094.2,3092.4,0.7742]
[1732116148220,3.23161,3094.5,3092.4,0.80653054]
[1732116148438,3.23161,3094.5,3092.4,0.7742]
[1732116148621,3.398,3094.3,3092.4,0.7742]
[1732116148822,3.57165,3094.2,3092.4,0.7742]
[1732116149023,3.2326,3093.5,3092.4,0.7742]
[1732116149322,0.55,3094.5,3092.4,0.7742]
[1732116149323,3.0,3093.8,3092.4,0.7742]
[1732116149523,0.623224,3093.7,3092.4,0.7742]
[1732116150108,3.0,3094.0,3092.4,0.7742]
[1732116150414,3.23204,3094.1,3092.6,0.7614]
[1732116150744,0.323181,3094.2,3092.6,0.7614]
[1732116150908,0.8167,3093.8,3092.6,0.7614]
[1732116151106,3.23321,3092.9,3092.6,0.7614]
[1732116151371,3.23348,3092.7,3091.0,0.7951]
[1732116151522,6.23352,3092.6,3091.0,0.7951]
[1732116151725,3.323321,3092.8,3091.0,0.7951]
[1732116151907,3.0,3092.8,3091.0,0.7951]
[1732116152272,3.0,3092.8,3090.8,0.01]
[1732116152273,3.0,3092.8,3091.1,0.78934723]
[1732116152550,0.55,3093.1,3091.1,0.78934723]
[1732116152755,0.55,3092.9,3091.1,0.78934723]
[1732116152963,3.23291,3093.2,3091.1,0.80934723]
[1732116153159,0.7845,3093.7,3091.3,0.02]
[1732116153466,3.0,3093.2,3091.4,0.757]
[1732116153628,3.2332,3093.0,3091.4,0.757]
[1732116153956,3.0,3093.0,3091.4,0.757]
[1732116154311,3.0,3093.1,3091.5,0.03234328]
[1732116154511,3.0,3093.1,3091.4,0.7951]
[1732116154748,0.323288,3093.2,3091.4,0.7951]
[1732116154924,0.3323288,3093.1,3091.4,0.7951]
[1732116155128,3.0,3092.7,3091.4,0.7951]
[1732116155517,6.23302,3093.1,3091.4,0.7951]
[1732116155744,0.946596,3093.0,3091.4,0.7951]
[1732116155948,3.0,3093.1,3091.4,0.7951]
[1732116156269,3.23224,3093.9,3091.1,0.03234411]
[1732116156270,3.23214,3094.0,3091.8,0.7951]
[1732116156416,0.7583,3094.1,3092.1,0.01]
[1732116156620,3.23217,3093.9,3092.2,0.7951]
[1732116156821,0.323217,3093.8,3092.2,0.7951]
[1732116157249,3.555517,3093.8,3092.2,0.7951]
[1732116157454,3.323217,3093.8,3092.2,0.7951]
[1732116157761,0.323217,3093.8,3092.2,0.7951]
[1732116158140,0.323217,3093.8,3092.4,0.7951]
[1732116158465,3.23217,3093.9,3092.4,0.7951]
[1732116158648,3.232,3094.1,3092.4,0.7951]
[1732116158857,3.23208,3094.0,3092.4,0.7951]
[1732116159460,3.0,3093.9,3092.4,0.7951]
[1732116159771,0.623208,3093.8,3092.4,0.7951]
[1732116160334,3.0,3094.0,3092.4,0.7951]
[1732116160516,3.0,3093.8,3092.4,0.7951]
[1732116160924,3.2326,3093.5,3092.4,0.7951]
[1732116161238,3.0,3093.4,3092.4,0.7951]
[1732116161560,3.0,3093.2,3092.4,0.7951]
[1732116161771,3.0,3093.4,3092.4,0.7951]
[1732116161939,0.62326,3093.3,3092.4,0.7951]
[1732116162762,4.496223,3093.8,3092.4,0.7951]
[1732116162763,3.0,3093.6,3092.4,0.7951]
[1732116162963,0.323223,3093.8,3092.4,0.7951]
[1732116163288,3.0,3093.8,3092.4,0.7951]
[1732116163484,3.0,3094.0,3092.4,0.7951]
[1732116164213,4.01427617,3094.7,3091.7,0.43169099]
[1732116164214,3.23137,3094.7,3092.6,0.8051]
[1732116164494,0.40142762,3094.6,3092.6,0.7951]
[1732116164796,0.40142762,3094.6,3092.8,0.7951]
[1732116165004,3.23119,3094.9,3092.9,0.82742794]
[1732116165304,3.23066,3095.4,3093.4,0.7951]
[1732116165802,1.184916,3095.2,3093.6,0.7951]
[1732116165985,3.23044,3095.6,3093.6,0.7556]
[1732116166149,0.7951,3095.4,3093.6,0.7556]
[1732116166349,0.7951,3095.4,3093.7,0.7556]
[1732116166992,3.23077,3095.3,3093.7,0.7556]
[1732116167295,3.0,3095.1,3093.7,0.7556]
[1732116167495,0.3,3095.0,3093.7,0.7556]
[1732116167695,0.7951,3095.4,3093.7,0.7556]
[1732116167899,3.23151,3094.6,3093.7,0.7556]
[1732116168206,3.0,3094.5,3093.7,0.7556]
[1732116168496,0.7951,3095.4,3093.7,0.7556]
[1732116168497,3.0,3094.2,3093.7,0.7556]
[1732116168667,0.55,3094.4,3093.7,0.7556]
[1732116168862,3.55,3094.4,3093.7,0.7556]
[1732116169050,6.78172,3094.4,3093.7,0.7556]
[1732116169248,0.678172,3094.3,3093.7,0.7556]
[1732116169682,3.23161,3094.5,3093.7,0.7556]
[1732116170075,3.0,3094.6,3093.7,0.7556]
[1732116170414,3.0,3094.3,3093.7,0.7556]
[1732116170569,0.623164,3094.2,3093.7,0.7556]
[1732116170775,6.23169,3094.4,3093.7,0.7556]
[1732116171175,3.8138,3095.2,3093.7,0.7556]
[1732116171374,3.0,3094.8,3093.7,0.7556]
[1732116171609,0.623119,3094.8,3093.7,0.7556]
[1732116171816,3.23187,3094.2,3093.7,0.7556]
[1732116172018,3.23126,3094.8,3093.7,0.7556]
[1732116172019,3.0,3094.1,3093.7,0.7556]
[1732116172171,3.0,3094.3,3093.7,0.7556]
[1732116172375,6.554916,3094.3,3093.7,0.7556]
[1732116172576,3.323166,3094.3,3093.7,0.7556]
[1732116173011,3.0,3094.1,3093.7,0.7556]
[1732116173817,3.323166,3094.3,3093.7,0.7556]
[1732116174024,3.0,3094.3,3093.7,0.7556]
[1732116174319,3.23122,3094.8,3093.7,0.7556]
[1732116174923,3.23107,3095.0,3093.7,0.7556]
[1732116175621,3.2307,3095.3,3093.7,0.7556]
[1732116175922,0.8152,3095.2,3093.7,0.7556]
[1732116176091,3.23143,3094.6,3093.7,0.7556]
[1732116176298,6.23163,3094.5,3093.7,0.7556]
[1732116176505,6.23157,3094.5,3093.7,0.7556]
[1732116176708,0.9463,3094.4,3093.7,0.7556]
[1732116177093,3.0,3094.6,3093.7,0.7556]
[1732116177296,6.2315,3094.6,3093.7,0.7556]
[1732116177492,3.0,3094.8,3093.7,0.7556]
[1732116177697,0.623117,3094.7,3093.7,0.7556]
[1732116178422,3.23082,3095.2,3093.7,0.7556]
[1732116178604,3.0,3095.0,3093.7,0.7556]
[1732116179026,6.23092,3095.1,3093.7,0.7556]
[1732116179191,3.23102,3095.0,3093.7,0.7556]
[1732116179387,0.946194,3094.9,3093.7,0.7556]
[1732116179593,4.02575,3095.4,3093.7,0.7556]
[1732116179594,0.7951,3095.4,3093.9,0.01]
[1732116179890,3.23029,3095.7,3094.0,0.7517]
[1732116180089,6.783929,3095.6,3094.0,0.7517]
[1732116180293,3.23043,3095.6,3094.0,0.7517]
[1732116180517,3.23068,3095.4,3094.0,0.7517]
[1732116180928,3.0,3095.5,3094.0,0.7517]
[1732116181197,1.337721,3096.3,3094.0,0.7517]
[1732116181198,3.0,3095.2,3094.0,0.7517]
[1732116181469,3.0,3095.6,3094.0,0.7517]
[1732116181631,3.22989,3096.1,3094.0,0.7517]
[1732116181632,3.23012,3095.9,3094.0,0.7517]
[1732116181832,0.322989,3096.0,3094.3,0.7951]
[1732116182034,3.22985,3096.2,3094.5,0.7951]
[1732116182239,3.22985,3096.2,3094.5,0.82741063]
[1732116182476,3.812001,3096.3,3094.5,0.82741063]
[1732116182644,0.3812001,3096.2,3094.5,0.82741063]
[1732116183051,0.3812001,3096.2,3094.5,0.7951]
[1732116183487,3.0,3096.1,3094.5,0.7951]
[1732116183764,3.0,3095.7,3094.5,0.7951]
[1732116184181,3.0,3095.4,3094.5,0.7951]
[1732116184396,3.0,3095.2,3094.5,0.7951]
[1732116184679,3.23077,3095.3,3094.5,0.7951]
[1732116184680,0.623077,3095.1,3094.5,0.7951]
[1732116184849,3.23069,3095.4,3094.5,0.7951]
[1732116184850,3.0,3095.4,3094.5,0.7951]
[1732116185053,3.0,3095.2,3094.5,0.7951]
[1732116185257,0.3,3095.2,3094.5,0.7951]
[1732116185589,3.0,3095.4,3094.5,0.7951]
[1732116185786,0.55,3095.9,3094.5,0.7951]
[1732116185992,3.0,3095.8,3094.5,0.7951]
[1732116186149,0.15146563,3096.0,3094.5,0.7951]
[1732116186354,3.22989,3096.1,3094.5,0.7951]
[1732116186588,3.23014,3095.9,3094.5,0.7951]
[1732116186890,0.8153,3096.1,3094.5,0.7951]
[1732116187306,3.0,3095.6,3094.5,0.7951]
[1732116187593,3.0,3095.2,3094.5,0.7951]
[1732116187795,3.0,3095.0,3094.5,0.7951]
[1732116188095,3.0,3095.2,3094.5,0.7951]
[1732116188387,3.0,3095.0,3094.5,0.7951]
[1732116188594,3.0,3094.9,3094.5,0.7951]
[1732116188950,3.0,3095.3,3094.5,0.7951]
[1732116189103,0.55,3096.0,3094.5,0.7951]
[1732116189395,3.0,3095.6,3094.5,0.7951]
[1732116189555,3.37665803,3096.0,3094.5,0.7951]
[1732116189760,0.14663803,3096.0,3094.5,0.7951]
[1732116189967,0.582321,3096.3,3094.8,0.55]
[1732116190198,3.2294,3096.6,3094.9,0.7951]
[1732116190410,0.32294,3096.5,3094.9,0.7951]
[1732116190706,0.87294,3096.5,3094.9,0.7951]
[1732116190912,0.87294,3096.5,3095.0,0.55]
[1732116191115,3.37536736,3096.6,3095.1,0.7951]
[1732116191404,0.981691,3096.8,3095.5,0.7951]
[1732116191605,3.22836,3097.6,3095.8,0.55]
[1732116191822,0.322836,3097.5,3096.1,0.7951]
[1732116191983,3.22773,3098.2,3096.3,0.7951]
[1732116192298,0.322773,3098.1,3096.5,0.7951]
[1732116192484,0.322773,3098.1,3096.1,0.02]
[1732116192485,3.22752,3098.4,3096.7,0.7951]
[1732116192716,0.322752,3098.3,3096.7,0.7951]
[1732116194029,0.15182454,3098.4,3096.3,0.04228724]
[1732116194030,0.15182454,3098.4,3096.9,0.7939]
[1732116194401,0.7908,3098.9,3096.9,0.7939]
[1732116194692,3.2279,3098.0,3096.9,0.7939]
[1732116194896,3.873606,3097.9,3096.9,0.7939]
[1732116195096,3.22761,3098.3,3096.9,0.7939]
[1732116195310,3.0,3097.4,3096.9,0.7939]
[1732116195481,0.62285,3097.3,3096.9,0.7939]
[1732116195700,3.22809,3097.8,3096.9,0.7939]
[1732116195950,0.8033,3097.9,3096.9,0.7939]
[1732116195951,3.0,3097.1,3096.9,0.7939]
[1732116196227,6.22893,3097.0,3096.9,0.7939]
[1732116196402,6.22893,3097.0,3095.1,0.7502]
[1732116196403,3.0,3096.7,3095.1,0.7502]
[1732116196596,3.0,3096.7,3095.2,0.7502]
[1732116197019,3.0,3096.9,3095.3,0.43169099]
[1732116197231,3.22846,3097.5,3095.5,0.8051]
[1732116197232,3.22849,3097.5,3095.5,0.8051]
[1732116197401,3.0,3097.4,3095.6,1.25908575]
[1732116197736,3.322849,3097.4,3095.7,0.7951]
[1732116197885,0.8226,3098.5,3095.9,0.01]
[1732116198085,0.8226,3098.5,3096.1,0.7951]
[1732116198086,3.22831,3097.6,3096.1,0.7951]
[1732116198283,0.322831,3097.5,3096.1,0.7951]
[1732116198484,3.22811,3097.8,3096.2,0.7951]
[1732116198784,0.8226,3098.5,3096.4,0.7584]
[1732116198785,0.97499373,3098.5,3096.4,0.7584]
[1732116199125,3.2282,3097.7,3096.4,0.7584]
[1732116199444,3.32282,3097.6,3096.4,0.7584]
[1732116199722,3.0,3097.8,3096.4,0.7584]
[1732116199932,3.0,3097.9,3096.5,0.55]
[1732116200081,3.0,3097.9,3096.6,0.7781]
[1732116200308,0.622792,3097.9,3096.6,0.7781]
[1732116200559,6.22779,3098.1,3096.6,0.7781]
[1732116200725,3.0,3098.1,3096.8,0.7951]
[1732116200929,0.62277,3098.1,3096.8,0.7951]
[1732116201132,3.22755,3098.4,3097.1,0.7917]
[1732116201326,3.88826737,3098.4,3097.1,0.7917]
[1732116201548,3.37981373,3098.5,3097.1,0.7917]
[1732116201859,3.2274,3098.5,3097.1,0.7917]
[1732116202029,0.8069,3098.9,3097.2,0.03228726]
[1732116202030,3.22723,3098.7,3097.2,0.03228726]
[1732116202236,3.22705,3098.8,3097.3,0.7917]
[1732116202425,3.2275,3098.4,3097.3,0.7917]
[1732116202630,3.22663,3099.2,3097.3,0.7917]
[1732116202862,3.0,3098.4,3097.3,0.7917]
[1732116203156,3.22716,3098.7,3097.3,0.7917]
[1732116203310,3.22744,3098.5,3097.3,0.7917]
[1732116203712,3.2276,3098.3,3097.3,0.7917]
[1732116203988,3.22741,3098.5,3097.3,0.7917]
[1732116204146,0.322741,3098.4,3097.3,0.7917]
[1732116204353,3.0,3098.2,3097.3,0.7917]
[1732116204515,3.0,3098.0,3097.3,0.7917]
[1732116204712,6.22817,3097.8,3097.3,0.7917]
[1732116204913,4.03436,3098.5,3097.3,0.7917]
[1732116204914,3.0,3097.5,3097.3,0.7917]
[1732116205625,6.22822,3097.7,3097.3,0.7917]
[1732116205816,3.22841,3097.5,3097.3,0.7917]
[1732116206154,3.0,3097.4,3096.1,0.7745]
[1732116206466,6.22874,3097.2,3096.1,0.7745]
[1732116206657,3.0,3097.0,3096.1,0.7745]
[1732116206861,3.0,3096.8,3096.1,0.7745]
[1732116207020,0.9435057,3097.7,3096.1,0.7745]
[1732116207021,3.0,3096.4,3096.1,0.7745]
[1732116207354,6.22956,3096.4,3096.1,0.7745]
[1732116207557,3.22984,3096.2,3095.0,0.7745]
[1732116207789,3.22984,3096.2,3094.3,0.01]
[1732116207790,3.0,3096.2,3095.1,0.43169099]
[1732116207937,3.0,3096.2,3094.3,0.0323081]
[1732116207938,3.0,3096.0,3095.2,0.7552]
[1732116208139,3.0,3096.2,3095.2,0.7552]
[1732116208571,3.15238377,3096.4,3095.2,0.7552]
[1732116208883,0.7955,3096.8,3094.7,0.43169099]
[1732116208884,3.22907,3096.9,3095.4,0.7951]
[1732116209186,3.0,3096.8,3095.4,0.7951]
[1732116209349,6.22954,3096.5,3095.4,0.7951]
[1732116209540,3.2294,3096.6,3095.4,0.7951]
[1732116209541,3.0,3096.3,3095.4,0.7951]
[1732116209736,3.0,3096.5,3095.4,0.7951]
[1732116210097,0.945882,3096.5,3095.4,0.7951]
[1732116210386,3.0,3096.3,3095.4,0.7951]
[1732116210536,6.22958,3096.4,3095.4,0.7951]
[1732116210739,3.2297,3096.3,3095.4,0.7951]
[1732116210981,6.22977,3096.2,3095.4,0.7951]
[1732116211164,4.245947,3096.2,3095.4,0.7951]
[1732116211370,3.0,3096.2,3095.4,0.7951]
[1732116211570,3.0,3095.9,3095.4,0.7951]
[1732116211749,3.22971,3096.3,3095.4,0.7951]
[1732116211951,3.22998,3096.0,3095.4,0.7951]
[1732116212160,6.22982,3096.2,3095.4,0.7951]
[1732116212435,3.0,3096.3,3095.4,0.7951]
[1732116212648,3.0,3096.0,3095.4,0.7951]
[1732116213081,3.22988,3096.1,3095.4,0.7951]
[1732116213465,0.322958,3096.3,3095.4,0.7951]
[1732116213634,3.0,3095.9,3095.4,0.7951]
[1732116214250,3.23024,3095.8,3095.4,0.7951]
[1732116214451,3.0,3095.7,3095.4,0.7951]
[1732116214867,6.23014,3095.9,3095.4,0.7951]
[1732116215070,3.23025,3095.8,3095.4,0.7951]
[1732116215612,3.0,3095.5,3094.4,0.7951]
[1732116215776,3.0,3095.3,3094.4,0.7951]
[1732116216599,6.2308,3095.3,3094.4,0.7951]
[1732116216810,3.0,3095.1,3094.4,0.7951]
[1732116217012,6.23099,3095.1,3094.4,0.7951]
[1732116217176,3.0,3094.9,3094.4,0.7951]
[1732116217504,3.0,3094.9,3093.4,0.43169099]
[1732116217505,3.0,3094.9,3093.5,0.7951]
[1732116217710,6.2312,3094.9,3093.5,0.7951]
[1732116217879,3.0,3094.9,3093.5,0.7951]
[1732116218072,3.0,3095.4,3093.6,0.80122177]
[1732116218284,3.0,3095.4,3093.7,0.7689]
[1732116218488,3.0,3095.2,3093.8,0.43169099]
[1732116218687,3.0,3095.2,3093.9,0.7689]
[1732116218974,0.7564,3095.8,3094.0,0.7689]
[1732116219299,3.0,3095.2,3094.0,0.7689]
[1732116219502,3.0,3095.4,3094.0,0.7689]
[1732116219662,3.22983,3096.2,3094.3,0.55]
[1732116219863,3.23017,3095.9,3094.4,0.7951]
[1732116220065,0.646021,3095.9,3094.5,0.7951]
[1732116220290,3.23004,3096.0,3094.5,0.7951]
[1732116220492,0.322983,3096.1,3094.5,0.7951]
[1732116220493,3.23039,3095.6,3094.5,0.7951]
[1732116220692,3.2307,3095.3,3094.5,0.7951]
[1732116220959,3.0,3095.5,3094.5,0.7951]
[1732116221206,3.23971,3096.3,3094.5,0.7951]
[1732116221207,3.2307,3095.3,3094.5,0.7951]
[1732116221501,3.0,3095.2,3094.5,0.7951]
[1732116221885,3.23081,3095.2,3094.5,0.7951]
[1732116222110,3.0,3095.1,3094.5,0.7951]
[1732116222412,6.23077,3095.3,3094.5,0.7951]
[1732116222627,3.0,3095.3,3094.5,0.7951]
[1732116222822,3.23042,3095.6,3094.5,0.7951]
[1732116222823,6.23039,3095.6,3094.5,0.7951]
[1732116223027,3.0,3095.6,3094.5,0.7951]
[1732116223196,3.0,3096.0,3094.5,0.7951]
[1732116223545,0.3,3095.9,3094.6,0.7708]
[1732116224058,3.14593237,3096.0,3094.6,0.7708]
[1732116224723,6.37595237,3096.0,3094.6,0.7708]
[1732116225230,3.0,3095.7,3094.6,0.7708]
[1732116225382,3.23042,3095.6,3094.6,0.7708]
[1732116225586,3.0,3095.4,3094.6,0.7708]
[1732116225825,3.23034,3095.7,3094.6,0.7708]
[1732116226029,6.23045,3095.6,3094.6,0.7708]
[1732116226338,6.2307,3095.3,3094.6,0.7708]
[1732116226487,3.0,3095.0,3094.6,0.7708]
[1732116227735,6.23103,3095.0,3094.6,0.7708]
[1732116228227,3.99722,3095.6,3094.6,0.7708]
[1732116228228,0.15200083,3095.2,3094.6,0.7708]
[1732116228386,3.0,3095.2,3094.6,0.7708]
[1732116228588,3.399722,3095.5,3094.6,0.7708]
[1732116228785,3.0,3095.5,3094.6,0.7708]
[1732116228985,0.15204553,3095.6,3094.6,0.7708]
[1732116229189,3.23031,3095.7,3094.6,0.7708]
[1732116229399,0.398756,3095.8,3094.6,0.7708]
[1732116229602,4.33042774,3096.9,3094.6,0.7708]
[1732116229603,0.7573,3096.4,3094.6,0.7708]
[1732116229905,0.7573,3096.4,3094.1,0.04231467]
[1732116229906,3.22961,3096.4,3094.8,0.7745]
[1732116230102,3.98647,3096.8,3094.9,0.03230804]
[1732116230324,0.398647,3096.7,3095.0,0.7745]
[1732116230524,3.22964,3096.4,3095.0,0.7745]
[1732116230890,3.22934,3096.6,3095.0,0.7745]
[1732116231195,0.14662172,3096.8,3095.3,0.55]
[1732116231434,0.14662172,3096.8,3094.8,0.43169099]
[1732116231435,3.22937,3096.6,3095.4,0.7745]
[1732116231918,3.22945,3096.5,3095.4,0.7745]
[1732116232119,0.645882,3096.4,3095.4,0.7745]
[1732116232301,3.22906,3096.9,3095.4,0.7745]
[1732116232505,3.22997,3096.0,3095.4,0.7745]